Workbook

Sheet Front
B8: A simple illustration of Excel's built in auditing tools
B10: As posted on: | D10: www.Chandoo.org

Sheet Example
B1: SALES REPORT
C2: Jan | D2: Feb | E2: Mar | F2: Q1 | G2: Apr | H2: May | I2: Jun | J2: Q2 | K2: Jul | L2: Aug | M2: Sep | N2: Q3 | O2: Oct | P2: Nov | Q2: Dec | R2: Q4 | S2: Total
B4: Region: North
B5: James Bourne | C5: 4521 | D5: 2863 | E5: 3802 | F5: 11925 | G5: =5498+200 -> 5698 | H5: =4487-350 -> 4137 | I5: =3362+U5 -> 3627 | J5: =SUM(G5:I5) -> 13462 | K5: 5100 | L5: 2280 | M5: 4207 | N5: =SUM(K5:M5) -> 11587 | O5: 3843 | P5: 3400 | Q5: 4200 | R5: =SUM(O5:Q5) -> 11443 | S5: =SUM(F5,J5,N5,R5) -> 48417 | U5: 265
B6: Chris Hewitt | C6: 3510 | D6: 4882 | E6: 3915 | F6: 12056 | G6: =4043-200 -> 3843 | H6: =1063+350 -> 1413 | I6: =4452-U5 -> 4187 | J6: =SUM(G6:I6) -> 9443 | K6: 2021 | L6: 1205 | M6: 2468 | N6: =SUM(K6:M6) -> 5694 | O6: 3825 | P6: 2500 | Q6: 3500 | R6: =SUM(O6:Q6) -> 9825 | S6: =SUM(F6,J6,N6,R6) -> 37018
B7: Pat Hill | C7: 5213 | D7: 4557 | E7: 2187 | F7: 10562 | G7: 1070 | H7: 4424 | I7: =1240+U7 -> 1240 | J7: =SUM(G7:I7) -> 6734 | K7: 4128 | L7: 2331 | M7: 3849 | N7: =SUM(K7:M7) -> 10308 | O7: 2928 | P7: 3000 | Q7: 5700 | R7: =SUM(O7:Q7) -> 11628 | S7: =SUM(F7,J7,N7,R7) -> 39232
B8: Jasmine Hunt | C8: 4175 | D8: 2681 | E8: 2257 | F8: 9112 | G8: 3588 | H8: 4666 | I8: =3666-U7 -> 3666 | J8: =SUM(G8:I8) -> 11920 | K8: 5410 | L8: 2719 | M8: 1934 | N8: =SUM(K8:M8) -> 10063 | O8: 1440 | P8: 2000 | Q8: 4700 | R8: =SUM(O8:Q8) -> 8140 | S8: =SUM(F8,J8,N8,R8) -> 39235
B9: Total North | C9: =SUM(C5:C8) -> 17419 | D9: =SUM(D5:D8) -> 14983 | E9: 12161 | F9: 43655 | G9: 14199 | H9: 14640 | I9: 12720 | J9: 41559 | K9: =SUM(K5:K8) -> 16659 | L9: =SUM(K5:K8) -> 16659 | M9: 12458 | N9: 37652 | O9: 12036 | P9: 10900 | Q9: 18100 | R9: 41036 | S9: 163902
B12: Region: South
B13: Mark Watts | C13: 3400 | D13: 5329 | E13: 4734 | F13: =SUM(C13:E13) -> 13463 | G13: 1450 | H13: 4191 | I13: =3109+#REF! ->  | J13: =SUM(G13:I13) ->  | K13: 2097 | L13: 2354 | M13: 1837 | N13: =SUM(K13:M13) -> 6288 | O13: 3525 | P13: =AVERAGE(L13:M13,O13) -> 2572 | Q13: 3565.666667 | R13: =SUM(O13:Q13) -> 9662.666667 | S13: =SUM(F13,J13,N13,R13) -> 
B14: Jane Hill | C14: 3608 | D14: 4922 | E14: 4711 | F14: =SUM(C14:E14) -> 13241 | G14: 1463 | H14: 1204 | I14: 2342 | J14: =SUM(G14:I14) -> 5009 | K14: 3402 | L14: 5269 | M14: 3625 | N14: =SUM(K14:M14) -> 12296 | O14: 4125 | P14: 4339.666667 | Q14: 6753.555556 | R14: =SUM(O14:Q14) -> 15218.22222 | S14: =SUM(F14,J14,N14,R14) -> 45764.22222
B15: Sarah Allen | C15: 2303 | D15: 1253 | E15: 3651 | F15: =SUM(C15:E15) -> 7207 | G15: 4595 | H15: 2863 | I15: 3802 | J15: =SUM(G15:I15) -> 11260 | K15: 1478 | L15: 5410 | M15: 0 | N15: =SUM(K15:M15) -> 6888 | O15: 0 | P15: 1803.333333 | Q15: 2897.111111 | R15: =SUM(O15:Q15) -> 4700.444444 | S15: =SUM(F15,J15,N15,R15) -> 30055.44444
B16: Roger West | C16: 2359 | D16: 5273 | E16: 5438 | F16: =SUM(C16:E16) -> 13070 | G16: 2280 | H16: 4882 | I16: 3915 | J16: =SUM(G16:I16) -> 11077 | K16: 5498 | L16: 2806 | M16: 3061 | N16: =SUM(K16:M16) -> 11365 | O16: 4757 | P16: 3541.333333 | Q16: 5989.111111 | R16: =SUM(O16:Q16) -> 14287.44444 | S16: =SUM(F16,J16,N16,R16) -> 49799.44444
B17: Gill Smith | C17: 4487 | D17: 2638 | E17: 5100 | F17: =SUM(C17:E17) -> 12225 | G17: 1205 | H17: 4557 | I17: 2187 | J17: =SUM(G17:I17) -> 7949 | K17: 4043 | L17: 2252 | M17: 5076 | N17: =SUM(K17:M17) -> 11371 | O17: 1101 | P17: 2809.666667 | Q17: 6418.888889 | R17: =SUM(O17:Q17) -> 10329.55556 | S17: =SUM(F17,J17,N17,R17) -> 41874.55556
B18: Total South | C18: =SUM(C13:C17) -> 16157 | D18: =SUM(D13:D17) -> 19415 | E18: 23634 | F18: 59206 | G18: 10993 | H18: 17697 | K18: 16518 | L18: 18091 | M18: 13599 | N18: 48208 | O18: 13508 | P18: 15066 | Q18: 25624.33333 | R18: 54198.33333
B21: Region: Wales
B22: Gareth Jones | C22: 1063 | D22: 3362 | E22: 2021 | F22: =SUM(C22:E22) -> 4425 | G22: 4175 | H22: 2681 | I22: 2257 | J22: =SUM(G22:I22) -> 9113 | K22: 1070 | L22: 1722 | M22: 2176 | N22: =SUM(K22:M22) -> 4968 | O22: 3445 | P22: =AVERAGE(L22:M22,O22) -> 2447.666667 | Q22: 3197.222222 | R22: =SUM(O22:Q22) -> 9089.888889 | S22: =SUM(F22,J22,N22,R22) -> 27595.88889
B23: Tim Stevens | C23: 4424 | D23: 4452 | E23: 4128 | F23: =SUM(C23:E23) -> 8876 | G23: 3400 | H23: 5329 | I23: 4734 | J23: =SUM(G23:I23) -> 13463 | K23: 3588 | L23: 1732 | M23: 4534 | N23: =SUM(K23:M23) -> 9854 | O23: 5123 | P23: 3796.333333 | Q23: 6061.444444 | R23: =SUM(O23:Q23) -> 14980.77778 | S23: =SUM(F23,J23,N23,R23) -> 47173.77778
B24: Mike Payne | C24: 4666 | D24: 1240 | E24: 5410 | F24: =SUM(C24:E24) -> 5906 | G24: 3608 | H24: 4922 | I24: 4711 | J24: =SUM(G24:I24) -> 13241 | K24: 1450 | L24: 3910 | M24: 2705 | N24: =SUM(K24:M24) -> 8065 | O24: 2936 | P24: 3183.666667 | Q24: 4651.222222 | R24: =SUM(O24:Q24) -> 10770.88889 | S24: =SUM(F24,J24,N24,R24) -> 37982.88889
B25: Total Wales | C25: =SUM(C23:C24) -> 9090 | D25: =SUM(D23:D24) -> 5692 | E25: 0 | F25: 14782 | G25: 7008 | H25: 10251 | I25: 9445 | J25: 26704 | K25: 5038 | L25: 5642 | M25: 7239 | N25: 17919 | O25: 8059 | P25: 6980 | Q25: 10712.66667 | R25: 25751.66667 | S25: 85156.66667
B28: Region: Scotland
B29: Simon Campbell | C29: 4191 | D29: 3109 | E29: 3402 | F29: =SUM(C29:E29) -> 10702 | G29: 2303 | H29: 1253 | I29: 3651 | J29: =SUM(G29:I29) -> 7207 | K29: 1463 | L29: 2845 | M29: 2303 | N29: =SUM(K29:M29) -> 6611 | O29: 4051 | P29: =AVERAGE(L29:M29,O29) -> 3066.333333 | Q29: =AVERAGE(M29:N29,P29) -> 3993.444444 | R29: =SUM(O29:Q29) -> 11110.77778 | S29: =SUM(F29,J29,N29,R29) -> 35630.77778
B30: Glen Wilks | C30: 1204 | D30: 2342 | E30: 1478 | F30: =SUM(C30:E30) -> 5024 | G30: 2359 | H30: 5273 | I30: 5438 | J30: =SUM(G30:I30) -> 13070 | K30: 4595 | L30: 2857 | M30: 5138 | N30: =SUM(K30:M30) -> 12590 | O30: 3261 | P30: =AVERAGE(L30:M30,O30) -> 3752 | Q30: =AVERAGE(M30:N30,P30:Q30) -> 0 | R30: =SUM(O30:Q30) -> 7013 | S30: =SUM(F30,J30,N30,R30) -> 37697
B31: Total Scotland | C31: =SUM(C29:C30) -> 5395 | D31: =SUM(D29:D30) -> 5451 | E31: 4880 | F31: 15726 | G31: 4662 | H31: 6526 | I31: 9089 | J31: 20277 | K31: 6058 | L31: 5702 | M31: 7441 | N31: 19201 | O31: 7312 | P31: 6818.333333 | Q31: 3993.444444 | R31: 18123.77778 | S31: 73327.77778
B33: Total | C33: =SUM(C9,C18,C25,C31) -> 48061 | D33: =SUM(D9,D18,D25,D31) -> 45541 | E33: 40675 | F33: 133369 | G33: 36862 | H33: 49114 | K33: 44273 | L33: 46094 | M33: 40737 | N33: 122980 | O33: 40915 | P33: 39764.33333 | Q33: 58430.44444 | R33: 139109.7778 | S33: =SUM(S9,S18,S25,S31) -> 

Sheet Resolved
B1: SALES REPORT 2011 £'000
C2: Jan | D2: Feb | E2: Mar | F2: Q1 | G2: Apr | H2: May | I2: Jun | J2: Q2 | K2: Jul | L2: Aug | M2: Sep | N2: Q3 | O2: Oct | P2: Nov | Q2: Dec | R2: Q4 | S2: Total
C3: ACT | D3: ACT | E3: ACT | G3: ACT | H3: ACT | I3: ACT | K3: ACT | L3: ACT | M3: ACT | O3: ACT | P3: FOR | Q3: FOR
B4: Region: North
B5: James Bourne | C5: 4521 | D5: 2863 | E5: 3802 | F5: =SUM(C5:E5) -> 11186 | G5: =5498+200 -> 5698 | H5: =4487-350 -> 4137 | I5: =3362+U5 -> 3627 | J5: =SUM(G5:I5) -> 13462 | K5: 5100 | L5: 2280 | M5: 4207 | N5: =SUM(K5:M5) -> 11587 | O5: 3843 | P5: 3400 | Q5: 4200 | R5: =SUM(O5:Q5) -> 11443 | S5: =SUM(F5,J5,N5,R5) -> 47678 | U5: 265
B6: Chris Hewitt | C6: 3510 | D6: 4882 | E6: 3915 | F6: 12307 | G6: =4043-200 -> 3843 | H6: =1063+350 -> 1413 | I6: =4452-U5 -> 4187 | J6: =SUM(G6:I6) -> 9443 | K6: 2021 | L6: 1205 | M6: 2468 | N6: =SUM(K6:M6) -> 5694 | O6: 3825 | P6: 2500 | Q6: 3500 | R6: =SUM(O6:Q6) -> 9825 | S6: =SUM(F6,J6,N6,R6) -> 37269
B7: Pat Hill | C7: 5213 | D7: 4557 | E7: 2187 | F7: 11957 | G7: 1070 | H7: 4424 | I7: =1240+U7 -> 1240 | J7: =SUM(G7:I7) -> 6734 | K7: 4128 | L7: 2331 | M7: 3849 | N7: =SUM(K7:M7) -> 10308 | O7: 2928 | P7: 3000 | Q7: 5700 | R7: =SUM(O7:Q7) -> 11628 | S7: =SUM(F7,J7,N7,R7) -> 40627
B8: Jasmine Hunt | C8: 4175 | D8: 2681 | E8: 2257 | F8: 9113 | G8: 3588 | H8: 4666 | I8: =3666-U7 -> 3666 | J8: =SUM(G8:I8) -> 11920 | K8: 5410 | L8: 2719 | M8: 1934 | N8: =SUM(K8:M8) -> 10063 | O8: 1440 | P8: 2000 | Q8: 4700 | R8: =SUM(O8:Q8) -> 8140 | S8: =SUM(F8,J8,N8,R8) -> 39236
B9: Total North | C9: =SUM(C5:C8) -> 17419 | D9: =SUM(D5:D8) -> 14983 | E9: 12161 | F9: 44563 | G9: 14199 | H9: 14640 | I9: 12720 | J9: 41559 | K9: =SUM(K5:K8) -> 16659 | L9: =SUM(L5:L8) -> 8535 | M9: 12458 | N9: 37652 | O9: 12036 | P9: 10900 | Q9: 18100 | R9: 41036 | S9: 164810
B12: Region: South
B13: Mark Watts | C13: 3400 | D13: 5329 | E13: 4734 | F13: =SUM(C13:E13) -> 13463 | G13: 1450 | H13: 4191 | I13: =3109 -> 3109 | J13: =SUM(G13:I13) -> 8750 | K13: 2097 | L13: 2354 | M13: 1837 | N13: =SUM(K13:M13) -> 6288 | O13: 3525 | P13: =AVERAGE(L13:M13,O13) -> 2572 | Q13: =AVERAGE(M13,O13:P13) -> 2644.666667 | R13: =SUM(O13:Q13) -> 8741.666667 | S13: =SUM(F13,J13,N13,R13) -> 37242.66667
B14: Jane Hill | C14: 3608 | D14: 4922 | E14: 4711 | F14: =SUM(C14:E14) -> 13241 | G14: 1463 | H14: 1204 | I14: 2342 | J14: =SUM(G14:I14) -> 5009 | K14: 3402 | L14: 5269 | M14: 3625 | N14: =SUM(K14:M14) -> 12296 | O14: 4125 | P14: =AVERAGE(L14:M14,O14) -> 4339.666667 | Q14: =AVERAGE(M14,O14:P14) -> 4029.888889 | R14: =SUM(O14:Q14) -> 12494.55556 | S14: =SUM(F14,J14,N14,R14) -> 43040.55556
B15: Sarah Allen | C15: 2303 | D15: 1253 | E15: 3651 | F15: =SUM(C15:E15) -> 7207 | G15: 4595 | H15: 2863 | I15: 3802 | J15: =SUM(G15:I15) -> 11260 | K15: 1478 | L15: 5410 | M15: 0 | N15: =SUM(K15:M15) -> 6888 | O15: 0 | P15: =AVERAGE(L15:M15,O15) -> 1803.333333 | Q15: =AVERAGE(M15,O15:P15) -> 601.1111111 | R15: =SUM(O15:Q15) -> 2404.444444 | S15: =SUM(F15,J15,N15,R15) -> 27759.44444
B16: Roger West | C16: 2359 | D16: 5273 | E16: 5438 | F16: =SUM(C16:E16) -> 13070 | G16: 2280 | H16: 4882 | I16: 3915 | J16: =SUM(G16:I16) -> 11077 | K16: 5498 | L16: 2806 | M16: 3061 | N16: =SUM(K16:M16) -> 11365 | O16: 4757 | P16: =AVERAGE(L16:M16,O16) -> 3541.333333 | Q16: 3786.444444 | R16: =SUM(O16:Q16) -> 12084.77778 | S16: =SUM(F16,J16,N16,R16) -> 47596.77778
B17: Gill Smith | C17: 4487 | D17: 2638 | E17: 5100 | F17: =SUM(C17:E17) -> 12225 | G17: 1205 | H17: 4557 | I17: 2187 | J17: =SUM(G17:I17) -> 7949 | K17: 4043 | L17: 2252 | M17: 5076 | N17: =SUM(K17:M17) -> 11371 | O17: 1101 | P17: 2809.666667 | Q17: 2995.555556 | R17: =SUM(O17:Q17) -> 6906.222222 | S17: =SUM(F17,J17,N17,R17) -> 38451.22222
B18: Total South | C18: =SUM(C13:C17) -> 16157 | D18: =SUM(D13:D17) -> 19415 | E18: 23634 | F18: 59206 | G18: 10993 | H18: 17697 | I18: 15355 | J18: 44045 | K18: 16518 | L18: 18091 | M18: 13599 | N18: 48208 | O18: 13508 | P18: 15066 | Q18: 14057.66667 | R18: 42631.66667 | S18: 194090.6667
B21: Region: Wales
B22: Gareth Jones | C22: 1063 | D22: 3362 | E22: 2021 | F22: =SUM(C22:E22) -> 6446 | G22: 4175 | H22: 2681 | I22: 2257 | J22: =SUM(G22:I22) -> 9113 | K22: 1070 | L22: 1722 | M22: 2176 | N22: =SUM(K22:M22) -> 4968 | O22: 3445 | P22: =AVERAGE(L22:M22,O22) -> 2447.666667 | Q22: =AVERAGE(M22,O22:P22) -> 2689.555556 | R22: =SUM(O22:Q22) -> 8582.222222 | S22: =SUM(F22,J22,N22,R22) -> 29109.22222
B23: Tim Stevens | C23: 4424 | D23: 4452 | E23: 4128 | F23: =SUM(C23:E23) -> 13004 | G23: 3400 | H23: 5329 | I23: 4734 | J23: =SUM(G23:I23) -> 13463 | K23: 3588 | L23: 1732 | M23: 4534 | N23: =SUM(K23:M23) -> 9854 | O23: 5123 | P23: 3796.333333 | Q23: 4484.444444 | R23: =SUM(O23:Q23) -> 13403.77778 | S23: =SUM(F23,J23,N23,R23) -> 49724.77778
B24: Mike Payne | C24: 4666 | D24: 1240 | E24: 5410 | F24: =SUM(C24:E24) -> 11316 | G24: 3608 | H24: 4922 | I24: 4711 | J24: =SUM(G24:I24) -> 13241 | K24: 1450 | L24: 3910 | M24: 2705 | N24: =SUM(K24:M24) -> 8065 | O24: 2936 | P24: 3183.666667 | Q24: 2941.555556 | R24: =SUM(O24:Q24) -> 9061.222222 | S24: =SUM(F24,J24,N24,R24) -> 41683.22222
B25: Total Wales | C25: =SUM(C22:C24) -> 10153 | D25: =SUM(D22:D24) -> 9054 | E25: 11559 | F25: =SUM(F22:F24) -> 30766 | G25: 11183 | H25: 12932 | I25: 11702 | J25: 35817 | K25: 6108 | L25: 7364 | M25: 9415 | N25: 22887 | O25: 11504 | P25: 9427.666667 | Q25: 10115.55556 | R25: 31047.22222 | S25: 120517.2222
B28: Region: Scotland
B29: Simon Campbell | C29: 4191 | D29: 3109 | E29: 3402 | F29: =SUM(C29:E29) -> 10702 | G29: 2303 | H29: 1253 | I29: 3651 | J29: =SUM(G29:I29) -> 7207 | K29: 1463 | L29: 2845 | M29: 2303 | N29: =SUM(K29:M29) -> 6611 | O29: 4051 | P29: =AVERAGE(L29:M29,O29) -> 3066.333333 | Q29: =AVERAGE(M29,O29:P29) -> 3140.111111 | R29: =SUM(O29:Q29) -> 10257.44444 | S29: =SUM(F29,J29,N29,R29) -> 34777.44444
B30: Glen Wilks | C30: 1204 | D30: 2342 | E30: 1478 | F30: =SUM(C30:E30) -> 5024 | G30: 2359 | H30: 5273 | I30: 5438 | J30: =SUM(G30:I30) -> 13070 | K30: 4595 | L30: 2857 | M30: 5138 | N30: =SUM(K30:M30) -> 12590 | O30: 3261 | P30: =AVERAGE(L30:M30,O30) -> 3752 | Q30: =AVERAGE(M30,O30:P30) -> 4050.333333 | R30: =SUM(O30:Q30) -> 11063.33333 | S30: =SUM(F30,J30,N30,R30) -> 41747.33333
B31: Total Scotland | C31: =SUM(C29:C30) -> 5395 | D31: =SUM(D29:D30) -> 5451 | E31: 4880 | F31: 15726 | G31: 4662 | H31: 6526 | I31: 9089 | J31: 20277 | K31: 6058 | L31: 5702 | M31: 7441 | N31: 19201 | O31: 7312 | P31: 6818.333333 | Q31: 7190.444444 | R31: 21320.77778 | S31: 76524.77778
B33: Total | C33: =SUM(C9,C18,C25,C31) -> 49124 | D33: =SUM(D9,D18,D25,D31) -> 48903 | E33: 52234 | F33: 150261 | G33: 41037 | H33: 51795 | I33: 48866 | J33: 141698 | K33: 45343 | L33: 39692 | M33: 42913 | N33: 127948 | O33: 44360 | P33: 42212 | Q33: 49463.66667 | R33: 136035.6667 | S33: =SUM(S9,S18,S25,S31) -> 555942.6667

Sheet Notes
C3: Issue | D3: Range | E3: Comments
C5: Layout and structure
B6: 1 | C6: Lack of report description | E6: Very little information is provided about the information presented. What year is this for, what is the currency, is this actual amounts or in 1,000s?
B7: 2 | C7: Lack of data labels | D7: Col P&Q | E7: November and December are forecasts based on an average of the last three months. This is not easily seen.
B8: 3 | C8: Lack of seperation within model | E8: Data entry, calculation and presentation all on one sheet
B9: 4 | C9: Lack of clarity over cell types | E9: It is not clear what is an input cell and what is a calculation cell
B10: 5 | C10: Inconsitency over cell types | D10: Col P&Q | E10: November and December are forecasts based on an average of the last three months. However for the North region these are constants.
B11: 6 | C11: Inconsitency over cell types | D11: G5,G6,H5,H6 | E11: These cells contain formula which is inconsistent
B12: 7 | C12: Inconsitency over cell types | D12: I5:I8 | E12: These cells contain formula which is inconsistent
B13: 8 | C13: Inconsitency over cell types | D13: I13 | E13: This cells contain formula which is inconsistent
B14: 9 | C14: Inconsitency over cell types | D14: F5:F8 | E14: These cells contain constants which is inconsistent
B15: 10 | C15: Hidden row | D15: Row 15 | E15: Row 15 is hidden but contains values (not obvious as the headers were removed)
B16: 11 | C16: Masked cell | D16: U5 | E16: This cell has a white on white format (white font, white background). REVIEW.
C18: Formulae
B19: 1 | C19: Circular reference | D19: Q30 | E19: The formula is incorrect and is a circular reference
B20: 2 | C20: Formula returning an error | D20: I13, J13, J33, S13, S18 & S33 | E20: These formulae are returning the #REF error
B21: 3 | C21: Incorrect formula | D21: Col Q | E21: The December forecast formula is incorrect as it is referencing the wrong ranges
B22: 4 | C22: Formulae with no precedents | D22: G5,G6,H5,H6 | E22: Not necessarily an issue but worth reviewing. These cell contain formulae with all values hard-coded
B23: 5 | C23: Mixed cell entry | D23: I5:I6 | E23: Formulae with a mix of constants and cell references. Not necessarily an issue but not best practice.
B24: 6 | C24: Mixed cell entry refering to a blank cell | D24: I7:I8 | E24: Formulae with a mix of constants and cell reference to blank cell. Not necessarily an issue needs to be reviewed and not best practice.
B25: 7 | C25: Incorrect formulae | D25: Row 25 | E25: The total formula is missing the top row for the Wales region
B26: 8 | C26: Incorrect formula | D26: L9 | E26: The formula has been incorrectly copied from K9 and sums K5:K8 rather than L5:L8.
B27: 9 | C27: Missing formulae | D27: F5:F8 | E27: Formulae have been overwritten with constants
B28: 10 | C28: Number formatted as text | D28: E22:E24 | E28: These cells contain numbers formatted as text
B29: 11 | C29: Incorrect formulae usage | D29: P15,Q15 | E29: These formulae are returning values for the forecast. Is this correct?
